Workbook

Sheet Sheet1
A1: HR22 LLC - T12 | B1: 2025-01-01 | C1: 2025-02-01 | D1: 2025-03-01 | E1: 2025-04-01 | F1: 2025-05-01 | G1: 2025-06-01 | H1: 2025-07-01 | I1: 2025-08-01 | J1: 2025-09-01 | K1: 2025-10-01 | L1: 2025-11-01 | M1: 2025-12-01 | N1: Total
A2: Operating Income & Expense
A3: Income
A4: RENTS
A5: Rent Income | B5: 47535.28 | C5: 47724.75 | D5: 61063.96 | E5: 47482.2 | F5: 51835.6 | G5: =44691.16-1000 -> 43691.16 | H5: =48846.56-147 -> 48699.56 | I5: 52926.53 | J5: 51043.8 | K5: 50189 | L5: 47070 | M5: =47164+7985 -> 55149 | N5: =SUM(B5:M5) -> 604410.84
A6: Other Income-Security Deposit used as rent payment | H6: 8000 | N6: =SUM(B6:M6) -> 8000
A7: Total RENTS | B7: =SUM(B5:B6) -> 47535.28 | C7: 47724.75 | D7: 61063.96 | E7: 47482.2 | F7: 51835.6 | G7: 43691.16 | H7: 56699.56 | I7: 52926.53 | J7: =SUM(J5:J6) -> 51043.8 | K7: =SUM(K5:K6) -> 50189 | L7: 47070 | M7: =SUM(M5:M6) -> 55149 | N7: 612410.84
A8: FEES
A9: Application Fee | B9: 95 | I9: =45 -> 45 | N9: =SUM(B9:M9) -> 140
A10: Late Fee | N10: 0
A11: Total FEES | B11: =SUM(B9:B10) -> 95 | C11: =SUM(C9:C10) -> 0 | D11: =SUM(D9:D10) -> 0 | E11: =SUM(E9:E10) -> 0 | F11: =SUM(F9:F10) -> 0 | G11: =SUM(G9:G10) -> 0 | H11: 0 | I11: 45 | J11: =SUM(J9:J10) -> 0 | K11: =SUM(K9:K10) -> 0 | L11: 0 | M11: =SUM(M9:M10) -> 0 | N11: 140
A12: Total Operating Income | B12: =SUM(B5+B11) -> 47630.28 | C12: =SUM(C5+C11) -> 47724.75 | D12: =SUM(D5+D11) -> 61063.96 | E12: =SUM(E5+E11) -> 47482.2 | F12: =SUM(F5+F11) -> 51835.6 | G12: =SUM(G5+G11) -> 43691.16 | H12: =SUM(H7+H11) -> 56699.56 | I12: 52971.53 | J12: =SUM(J7+J11) -> 51043.8 | K12: =SUM(K7+K11) -> 50189 | L12: 47070 | M12: =SUM(M7+M11) -> 55149 | N12: =SUM(B12:M12) -> 612550.84
A13: Expense
A14: CLEANING AND MAINTENANCE
A15: Exterminator | B15: 440 | C15: 220 | D15: 220 | E15: 220 | F15: 220 | G15: =220+750 -> 970 | H15: =220+200 -> 420 | I15: 220 | J15: 220 | K15: 220 | L15: 220 | M15: 220 | N15: =SUM(B15:M15) -> 3810
A16: Landscaping | E16: 140 | H16: =305+165+650 -> 1120 | I16: 280 | J16: 280 | K16: 280 | L16: 335 | M16: 280 | N16: 2715
A17: Cleaning and Maintenance -Other | B17: =300+61.58 -> 361.58 | C17: 142.56 | E17: 60 | F17: 350 | I17: 183.6 | J17: 140.24 | L17: 106.36 | N17: 1344.34
A18: Total CLEANING AND MAINTENANCE | B18: =SUM(B15:B17) -> 801.58 | C18: =SUM(C15:C17) -> 362.56 | D18: =SUM(D15:D17) -> 220 | E18: =SUM(E15:E17) -> 420 | F18: =SUM(F15:F17) -> 570 | G18: =SUM(G15:G17) -> 970 | H18: =SUM(H15:H17) -> 1540 | I18: =SUM(I15:I17) -> 683.6 | J18: =SUM(J15:J17) -> 640.24 | K18: =SUM(K15:K17) -> 500 | L18: =SUM(L15:L17) -> 661.36 | M18: =SUM(M15:M17) -> 500 | N18: 7869.34
A19: LEGAL AND OTHER PROFESSIONAL FEES
A20: Legal | C20: 55 | E20: 55 | F20: =55 -> 55 | G20: 55 | L20: =55+55+55 -> 165 | N20: =SUM(B20:M20) -> 385
A21: Other | E21: 420.42 | N21: 420.42
A22: Total LEGAL AND OTHER PROFESSIONAL FEES | B22: =SUM(B20:B21) -> 0 | C22: =SUM(C20:C21) -> 55 | D22: =SUM(D20:D21) -> 0 | E22: =SUM(E20:E21) -> 475.42 | F22: =SUM(F20:F21) -> 55 | G22: =SUM(G20:G21) -> 55 | H22: =SUM(H20:H21) -> 0 | I22: =SUM(I20:I21) -> 0 | J22: =SUM(J20:J21) -> 0 | K22: =SUM(K20:K21) -> 0 | L22: =SUM(L20:L21) -> 165 | M22: =SUM(M20:M21) -> 0 | N22: 805.42
A23: Total MANAGEMENT FEES | B23: 500 | C23: 500 | D23: 500 | E23: 500 | F23: 500 | G23: 500 | H23: 500 | I23: 500 | J23: 500 | K23: 500 | L23: 500 | M23: 500 | N23: 6000
A24: REPAIRS & MAINTENANCE
A25: Plumbing | B25: =12.25+90.41 -> 102.66 | F25: 442 | G25: 100 | J25: =155.52+37.95+114.39 -> 307.86 | K25: 70.48 | L25: =105.67+80.28 -> 185.95 | N25: =SUM(B25:M25) -> 1208.95
A26: Appliances | C26: 100 | G26: 77.76 | I26: 113.67 | K26: 46.4 | N26: 337.83
A27: HVAC (Heat, Ventilation, Air) | J27: 165 | K27: 245 | N27: 410
A28: Paint & Plaster | B28: 376.24 | C28: 150 | F28: 850 | I28: 1700 | J28: 437.53 | M28: 200 | N28: 3713.77
A29: Tools | N29: 0
A30: Locks | J30: 444.56 | N30: 444.56
A31: Other | B31: =135.76+330.84 -> 466.6 | C31: 250 | D31: 279.77 | G31: 60 | I31: =349.77+30.02 -> 379.79 | J31: 30 | K31: =83.09+44.36 -> 127.45 | L31: =34.83+35.25+30.64 -> 100.72 | M31: 250 | N31: 1944.33
A32: Total REPAIRS & MAINTENANCE | B32: =SUM(B25:B31) -> 945.5 | C32: =SUM(C25:C31) -> 500 | D32: 279.77 | E32: 0 | F32: 1292 | G32: 237.76 | H32: 0 | I32: =SUM(I25:I31) -> 2193.46 | J32: =SUM(J25:J31) -> 1384.95 | K32: =SUM(K25:K31) -> 489.33 | L32: =SUM(L25:L31) -> 286.67 | M32: 450 | N32: 8059.44
A33: FIRE & SAFETY
A34: Monitoring | B34: 62 | C34: 62 | D34: 62 | E34: 62 | F34: 62 | G34: 62 | H34: 62 | I34: =62+167 -> 229 | J34: =62+86.36 -> 148.36 | K34: 62 | L34: 62 | M34: 62 | N34: =SUM(B34:M34) -> 997.36
A35: Other | I35: 172.71 | N35: 172.71
A36: Total FIRE & SAFETY | B36: =SUM(B34:B35) -> 62 | C36: =SUM(C34:C35) -> 62 | D36: 62 | E36: 62 | F36: 62 | G36: =SUM(G34:G35) -> 62 | H36: =SUM(H34:H35) -> 62 | I36: 401.71 | J36: 148.36 | K36: 62 | L36: 62 | M36: 62 | N36: 1170.07
A37: OFFICE SUPPLIES
A38: Paper | N38: =SUM(B38:M38) -> 0
A39: Toner | N39: 0
A40: Folders | N40: 0
A41: Other | C41: 204.66 | G41: 92.85 | K41: 202.68 | N41: 500.19
A42: Total SUPPLIES | B42: =SUM(B38:B41) -> 0 | C42: 204.66 | D42: 0 | E42: 0 | F42: 0 | G42: 92.85 | H42: 0 | I42: 0 | J42: 0 | K42: 202.68 | L42: 0 | M42: 0 | N42: 500.19
A43: INSURANCE & TAXES
A44: insurance | B44: 3625.73 | C44: =3625.73+551.2 -> 4176.93 | D44: 3625.73 | E44: 3625.73 | F44: 3625.73 | G44: 3625.73 | H44: 3625.73 | I44: 3625.73 | J44: 2764 | K44: 3187.57 | L44: 3187.57 | M44: 3187.57 | N44: =SUM(B44:M44) -> 41883.75
A45: Taxes | B45: 40883.28 | N45: 40883.28
A46: Tax Filing | C46: 1375 | N46: 1375
A47: Total INSURANCE & TAXES | B47: =SUM(B44:B46) -> 44509.01 | C47: 5551.93 | D47: 3625.73 | E47: =SUM(E44:E46) -> 3625.73 | F47: =SUM(F44:F46) -> 3625.73 | G47: 3625.73 | H47: 3625.73 | I47: 3625.73 | J47: 2764 | K47: 3187.57 | L47: 3187.57 | M47: =SUM(M44:M46) -> 3187.57 | N47: 84142.03
A48: UTILITIES
A49: Telephone & Internet | B49: 796.51 | C49: 796.51 | D49: 796.51 | E49: 869.85 | F49: 869.85 | G49: 869.85 | H49: 869.6 | I49: 883.1 | J49: 869.6 | K49: 870.46 | L49: 878.78 | M49: 905.41 | N49: =SUM(B49:M49) -> 10276.03
A50: Cable | B50: 997.54 | C50: 997.54 | D50: 997.54 | E50: 997.54 | F50: 997.54 | G50: 997.54 | H50: 997.54 | I50: 997.54 | J50: 997.54 | K50: 997.54 | L50: 997.54 | M50: 997.54 | N50: 11970.48
A51: Gas | B51: 490.67 | C51: 467.95 | E51: 47.21 | F51: 399.02 | G51: 397.33 | H51: 326.4 | I51: 343.75 | J51: 352.74 | K51: 368.67 | L51: 365.89 | M51: 491.1 | N51: 4050.73
A52: Electricity | B52: =549.76+1287.87+116.11 -> 1953.74 | C52: =621.02+1407.17+116.11 -> 2144.3 | D52: =578.36+1498.48+116.11 -> 2192.95 | E52: =416.4+1420.07+116.11 -> 1952.58 | F52: =360.47+1313.36+116.11 -> 1789.94 | G52: =361.8+1332.67+116.11 -> 1810.58 | H52: =436.7+1524.66+116.11 -> 2077.47 | I52: =464.54+1707.11+116.11 -> 2287.76 | J52: =1761.69+116.11+432.92 -> 2310.72 | K52: =376.75+1546.57+116.11 -> 2039.43 | L52: =356.59+1414.97+116.11 -> 1887.67 | M52: =365.27+1209.68+116.11 -> 1691.06 | N52: 24138.2
A53: Water | B53: 619.76 | C53: 626.28 | D53: 600.59 | E53: 609.63 | F53: 657.42 | G53: 616.14 | H53: 646.81 | I53: 653.67 | J53: 679.19 | K53: 681.48 | L53: 639.57 | M53: 641.9 | N53: 7672.44
A54: Garbage and Recycling | B54: =439.03+60+60 -> 559.03 | C54: 444.61 | D54: 704.96 | E54: 445.09 | F54: 445.43 | G54: 441.87 | H54: =60+441.57+60+60 -> 621.57 | I54: =446.81+60 -> 506.81 | J54: =446.31+50 -> 496.31 | K54: =446.31+60 -> 506.31 | L54: 445.21 | M54: =50+50+448.59+160 -> 708.59 | N54: 6325.79
A55: Total UTILITIES | B55: =SUM(B49:B54) -> 5417.25 | C55: 5477.19 | D55: 5292.55 | E55: 4921.9 | F55: 5159.2 | G55: =SUM(G49:G54) -> 5133.31 | H55: 5539.39 | I55: 5672.63 | J55: 5706.1 | K55: 5463.89 | L55: 5214.66 | M55: =SUM(M49:M54) -> 5435.6 | N55: 64433.67
A56: PAYROLL
A57: Property Manager | B57: =1200+1200+50 -> 2450 | C57: =1200+1200 -> 2400 | D57: =1200+1200 -> 2400 | E57: =1200+1200 -> 2400 | F57: =1200+1200+1200 -> 3600 | G57: =1200+1200 -> 2400 | H57: =1200+1200 -> 2400 | I57: =100+1200+1200 -> 2500 | J57: =1200+1200 -> 2400 | K57: =1200+1200+1200 -> 3600 | L57: =60+60+1200+1200 -> 2520 | M57: =350+1200+1200 -> 2750 | N57: =SUM(B57:M57) -> 31820
A58: Maintenance Payroll | D58: 60 | E58: =43.2+60 -> 103.2 | G58: 100 | I58: 300 | L58: 120 | M58: 150 | N58: 833.2
A59: Total PAYROLL | B59: =SUM(B57:B58) -> 2450 | C59: 2400 | D59: =SUM(D57:D58) -> 2460 | E59: =SUM(E57:E58) -> 2503.2 | F59: 3600 | G59: =SUM(G57:G58) -> 2500 | H59: =SUM(H57:H58) -> 2400 | I59: =SUM(I57:I58) -> 2800 | J59: =SUM(J57:J58) -> 2400 | K59: =SUM(K57:K58) -> 3600 | L59: =SUM(L57:L58) -> 2640 | M59: =SUM(M57:M58) -> 2900 | N59: 32653.2
A60: OTHER
A61: Leasing Commissions | B61: 1562 | C61: 850 | G61: 850 | I61: 800 | J61: 2750 | M61: 910 | N61: =SUM(B61:M61) -> 7722
A62: Computer Software | B62: 66.36 | C62: 66.36 | D62: 66.36 | E62: 66.36 | F62: 66.36 | G62: 66.36 | H62: 66.36 | I62: 66.36 | J62: 66.36 | K62: 66.36 | L62: 66.36 | M62: =66.36+99.99 -> 166.35 | N62: 896.31
A63: Total OTHER | B63: =SUM(B61:B62) -> 1628.36 | C63: 916.36 | D63: 66.36 | E63: 66.36 | F63: 66.36 | G63: =SUM(G61:G62) -> 916.36 | H63: =SUM(H61:H62) -> 66.36 | I63: =SUM(I61:I62) -> 866.36 | J63: =SUM(J61:J62) -> 2816.36 | K63: =SUM(K61:K62) -> 66.36 | L63: =SUM(L61:L62) -> 66.36 | M63: =SUM(M61:M62) -> 1076.35 | N63: 8618.31
A64: Total Operating Expense | B64: =SUM(B18+B22+B23+B32+B36+B42+B47+B55+B59+B63) -> 56313.7 | C64: 16029.7 | D64: 12506.41 | E64: 12574.61 | F64: 14930.29 | G64: 14093.01 | H64: 13733.48 | I64: 16743.49 | J64: 16360.01 | K64: =SUM(K18+K22+K23+K32+K36+K42+K47+K55+K59+K63) -> 14071.83 | L64: =SUM(L18+L22+L23+L32+L36+L42+L47+L55+L59+L63) -> 12783.62 | M64: =SUM(M18+M22+M23+M32+M36+M42+M47+M55+M59+M63) -> 14111.52 | N64: =SUM(B64:M64) -> 214251.67
A67: Total Income | B67: =B12 -> 47630.28 | C67: 47724.75 | D67: 61063.96 | E67: 47482.2 | F67: 51835.6 | G67: 43691.16 | H67: 56699.56 | I67: 52971.53 | J67: 51043.8 | K67: =K12 -> 50189 | L67: =L12 -> 47070 | M67: =M12 -> 55149 | N67: =SUM(B67:M67) -> 612550.84
A68: Total Expense | B68: =B64 -> 56313.7 | C68: =C64 -> 16029.7 | D68: 12506.41 | E68: 12574.61 | F68: 14930.29 | G68: =G64 -> 14093.01 | H68: =H64 -> 13733.48 | I68: =I64 -> 16743.49 | J68: =J64 -> 16360.01 | K68: =K64 -> 14071.83 | L68: =L64 -> 12783.62 | M68: =M64 -> 14111.52 | N68: 214251.67
A70: Net Operating Income | B70: =SUM(B67-B68) -> -8683.42 | C70: =SUM(C67-C68) -> 31695.05 | D70: 48557.55 | E70: 34907.59 | F70: 36905.31 | G70: =SUM(G67-G68) -> 29598.15 | H70: =SUM(H67-H68) -> 42966.08 | I70: =SUM(I67-I68) -> 36228.04 | J70: =SUM(J67-J68) -> 34683.79 | K70: =SUM(K67-K68) -> 36117.17 | L70: =SUM(L67-L68) -> 34286.38 | M70: =SUM(M67-M68) -> 41037.48 | N70: =SUM(B70:M70) -> 398299.17
